fUST/lending_fUST_20250825
["ID","MTS","AMOUNT","RATE_DAILY","PERIOD"]
[381120115,1756055457341,-1751.26651898,0.00049999,120]
[381120117,1756055457350,-1751.26651898,0.00049999,120]
[381120118,1756055457360,-1751.26651898,0.00049999,120]
[381120120,1756055457369,-1751.26651898,0.00049999,120]
[381120121,1756055457378,-1751.26651898,0.00049999,120]
[381120123,1756055457387,-1751.26651898,0.00049999,120]
[381120125,1756055457396,-1751.26651898,0.00049999,120]
[381120126,1756055457406,-1751.26651898,0.00049999,120]
[381120128,1756055457415,-1751.26651898,0.00049999,120]
[381120130,1756055457425,-1751.26651898,0.00049999,120]
[381120131,1756055457435,-1751.26651898,0.00049999,120]
[381120133,1756055457443,-1751.26651898,0.00049999,120]
[381120135,1756055457453,-1751.26651898,0.00049999,120]
[381120136,1756055457462,-1751.26651898,0.00049999,120]
[381120138,1756055457471,-1751.26651898,0.00049999,120]
[381120139,1756055457480,-1751.26651898,0.00049999,120]
[381120141,1756055457489,-1751.26651898,0.00049999,120]
[381120143,1756055457498,-1751.26651898,0.00049999,120]
[381120144,1756055457507,-1751.26651898,0.00049999,120]
[381120146,1756055457517,-1751.26651898,0.00049999,120]
[381120148,1756055457526,-1751.26651898,0.00049999,120]
[381120150,1756055457535,-1751.26651898,0.00049999,120]
[381120152,1756055457544,-1751.26651898,0.00049999,120]
[381120154,1756055457553,-1751.26651898,0.00049999,120]
[381120156,1756055457562,-1751.26651898,0.00049999,120]
[381120158,1756055457571,-1751.26651898,0.00049999,120]
[381120160,1756055457580,-1751.26651898,0.00049999,120]
[381120162,1756055457589,-1751.26651898,0.00049999,120]
[381120164,1756055457599,-1751.26651898,0.00049999,120]
[381120166,1756055457608,-1751.26651898,0.00049999,120]
[381120168,1756055457618,-1751.26651898,0.00049999,120]
[381120170,1756055457628,-1742.04932676,0.00049999,120]
[381120172,1756055457637,-1742.04932676,0.00049999,120]
[381120174,1756055457647,-1742.04932676,0.00049999,120]
[381120176,1756055457656,-1742.04932676,0.00049999,120]
[381120178,1756055457666,-1742.04932676,0.00049999,120]
[381120180,1756055457676,-1742.04932676,0.00049999,120]
[381120181,1756055457686,-1742.04932676,0.00049999,120]
[381120182,1756055457695,-1742.04932676,0.00049999,120]
[381120183,1756055457704,-1742.04932676,0.00049999,120]
[381120184,1756055457713,-1742.04932676,0.00049999,120]
[381120185,1756055457722,-1742.04932676,0.00049999,120]
[381120186,1756055457731,-1742.04932676,0.00049999,120]
[381120187,1756055457740,-1742.04932676,0.00049999,120]
[381120188,1756055457749,-1742.04932676,0.00049999,120]
[381120189,1756055457758,-1742.04932676,0.00049999,120]
[381120190,1756055457767,-1742.04932676,0.00049999,120]
[381120191,1756055457776,-1742.04932676,0.00049999,120]
[381120192,1756055457786,-1742.04932676,0.00049999,120]
[381120193,1756055457796,-1742.04932676,0.00049999,120]
[381120194,1756055457805,-11792.5,0.0005,120]
[381120195,1756055457815,-264.29152317,0.0005,120]
[381120196,1756055457825,-530.21713478,0.0005,10]
[381120197,1756055457834,-199.0,0.0005,7]
[381120198,1756055457843,-1000.0,0.0005,120]
[381120199,1756055457853,-200.0,0.0005,120]
[381120200,1756055457862,-725.14077369,0.0005,120]
[381120201,1756055457871,-1000.0,0.0005,120]
[381120202,1756055457880,-87811.26035017,0.0005,120]
[381120203,1756055457889,-13570.22085588,0.0005,120]
[381120204,1756055457898,-232.42214577,0.0005,7]
[381120205,1756055457908,-153.0,0.0005,120]
[381120206,1756055457917,-160.0,0.0005,7]
[381120207,1756055457927,-8115.87,0.0005,14]
[381120208,1756055457936,-200.0,0.00050058,10]
[381120209,1756055457946,-1080.06800975,0.00050121,2]
[381120210,1756055457955,-1000.0,0.00050121,10]
[381120211,1756055457964,-480.0,0.00050136,120]
[381120212,1756055457974,-480.0,0.00050136,120]
[381120213,1756055457986,-480.0,0.00050136,120]
[381120214,1756055457995,-500.0,0.00050136,60]
[381120215,1756055458004,-480.0,0.00050136,120]
[381120216,1756055458014,-480.0,0.00050136,120]
[381120217,1756055458025,-480.0,0.00050136,120]
[381120218,1756055458033,-480.0,0.00050136,120]
[381120219,1756055458043,-480.0,0.00050136,120]
[381120220,1756055458053,-1304.33,0.00050136,120]
[381120221,1756055458062,-480.0,0.00050136,120]
[381120222,1756055458071,-480.0,0.00050136,120]
[381120223,1756055458080,-558.0,0.00050136,120]
[381120224,1756055458090,-480.0,0.00050136,120]
[381120225,1756055458099,-480.0,0.00050136,120]
[381120226,1756055458109,-480.0,0.00050136,120]
[381120227,1756055458118,-1204.6,0.00050136,120]
[381120228,1756055458128,-708.36,0.00050136,120]
[381120229,1756055458137,-480.0,0.00050136,120]
[381120231,1756055458147,-480.0,0.00050136,120]
[381120232,1756055458156,-480.0,0.00050136,120]
[381120233,1756055458165,-480.0,0.00050136,120]
[381120234,1756055458174,-480.0,0.00050136,120]
[381120235,1756055458184,-480.0,0.00050136,120]
[381120237,1756055458193,-876.23,0.00050136,120]
[381120238,1756055458202,-480.0,0.00050136,120]
[381120239,1756055458211,-501.47,0.00050136,120]
[381120241,1756055458221,-480.0,0.00050136,120]
[381120243,1756055458230,-987.64,0.00050136,120]
[381120260,1756055458378,-480.0,0.00050136,120]
[381120262,1756055458389,-231.86962808,0.00050136,2]
[381120264,1756055458400,-1032.37,0.00050136,120]
[381120266,1756055458413,-480.0,0.00050136,120]
[381120268,1756055458422,-480.0,0.00050136,120]
[381120270,1756055458432,-1387.16,0.00050136,120]
[381120272,1756055458441,-480.0,0.00050136,120]
[381120274,1756055458451,-480.0,0.00050136,120]
[381120276,1756055458460,-480.0,0.00050136,120]
[381120278,1756055458469,-480.0,0.00050136,120]
[381120280,1756055458478,-480.0,0.00050136,7]
[381120282,1756055458488,-480.0,0.00050136,120]
[381120284,1756055458497,-480.0,0.00050136,120]
[381120286,1756055458506,-402.60009878,0.00050136,120]
[381120288,1756055458516,-480.0,0.00050136,120]
[381120289,1756055458525,-480.0,0.00050136,120]
[381120291,1756055458534,-480.0,0.00050136,120]
[381120293,1756055458543,-1009.24,0.00050136,120]
[381120295,1756055458552,-599.47776582,0.00050136,120]
[381120297,1756055458562,-480.0,0.00050136,120]
[381120299,1756055458571,-639.3,0.00050136,120]
[381120301,1756055458580,-480.0,0.00050136,120]
[381120303,1756055458589,-480.0,0.00050136,120]
[381120305,1756055458599,-480.0,0.00050136,120]
[381120307,1756055458608,-480.0,0.00050136,120]
[381120309,1756055458617,-620.93,0.00050136,120]
[381120311,1756055458626,-531.33,0.00050136,120]
[381120313,1756055458636,-480.0,0.00050136,120]
[381120315,1756055458645,-1028.86,0.00050136,120]
[381120317,1756055458654,-480.0,0.00050136,120]
[381120319,1756055458663,-480.0,0.00050136,120]
[381120321,1756055458672,-480.0,0.00050136,120]
[381120323,1756055458681,-575.38,0.00050136,120]
[381120325,1756055458690,-480.0,0.00050136,120]
[381120327,1756055458699,-454.86704062,0.00050136,120]
[381120329,1756055458709,-480.0,0.00050136,120]
[381120331,1756055458718,-764.97,0.00050136,7]
[381120333,1756055458727,-480.0,0.00050136,120]
[381120335,1756055458736,-480.0,0.00050136,120]
[381120337,1756055458745,-480.0,0.00050136,120]
[381120339,1756055458754,-480.0,0.00050136,120]
[381120341,1756055458763,-426.03581214,0.00050136,120]
[381120343,1756055458773,-799.56,0.00050136,120]
[381120345,1756055458784,-823.61,0.00050136,120]
[381120347,1756055458793,-480.0,0.00050136,120]
[381120349,1756055458803,-2054.44,0.00050136,120]
[381120351,1756055458812,-480.0,0.00050136,120]
[381120353,1756055458821,-480.0,0.00050136,120]
[381120355,1756055458831,-1012.25,0.00050136,120]
[381120357,1756055458840,-480.0,0.00050136,120]
[381120359,1756055458849,-1024.39,0.00050136,120]
[381120361,1756055458858,-480.0,0.00050136,120]
[381120363,1756055458867,-480.0,0.00050136,120]
[381120365,1756055458876,-560.12,0.00050136,120]
[381120367,1756055458886,-480.0,0.00050136,120]
[381120369,1756055458895,-693.67,0.00050136,120]
[381120371,1756055458905,-480.0,0.00050136,120]
[381120373,1756055458914,-480.0,0.00050136,120]
[381120375,1756055458923,-480.0,0.00050136,120]
[381120377,1756055458933,-1104.99,0.00050136,120]
[381120378,1756055458942,-480.0,0.00050136,120]
[381120381,1756055458952,-480.0,0.00050136,120]
[381120382,1756055458962,-480.0,0.00050136,120]
[381120384,1756055458971,-480.0,0.00050136,120]
[381120386,1756055458987,-480.0,0.00050136,120]
[381120388,1756055458996,-575.02,0.00050136,120]
[381120390,1756055459005,-480.0,0.00050136,120]
[381120392,1756055459015,-480.0,0.00050136,120]
[381120394,1756055459025,-480.0,0.00050136,120]
[381120396,1756055459034,-480.0,0.00050136,120]
[381120398,1756055459044,-760.49,0.00050136,120]
[381120400,1756055459054,-480.0,0.00050136,120]
[381120402,1756055459065,-480.0,0.00050136,120]
[381120404,1756055459074,-480.0,0.00050136,120]
[381120406,1756055459084,-480.0,0.00050136,120]
[381120408,1756055459094,-480.0,0.00050136,120]
[381120410,1756055459103,-480.0,0.00050136,120]
[381120412,1756055459112,-480.0,0.00050136,120]
[381120414,1756055459122,-480.0,0.00050136,120]
[381120416,1756055459131,-480.0,0.00050136,120]
[381120418,1756055459140,-480.0,0.00050136,120]
[381120420,1756055459150,-480.0,0.00050136,120]
[381120422,1756055459159,-480.0,0.00050136,120]
[381120424,1756055459168,-2800.8,0.00050136,120]
[381120426,1756055459179,-799.54,0.00050136,20]
[381120428,1756055459188,-606.76536391,0.00050136,120]
[381120430,1756055459197,-480.0,0.00050136,120]
[381120432,1756055459206,-480.0,0.00050136,120]
[381120434,1756055459216,-480.0,0.00050136,120]
[381120436,1756055459225,-480.0,0.00050136,120]
[381120438,1756055459234,-498.36,0.00050136,120]
[381120440,1756055459243,-480.0,0.00050136,120]
[381120442,1756055459253,-480.0,0.00050136,120]
[381120444,1756055459262,-480.0,0.00050136,120]
[381120446,1756055459272,-575.73,0.00050136,120]
[381120448,1756055459282,-2456.9,0.00050136,120]
[381120450,1756055459291,-1110.12,0.00050136,120]
[381120452,1756055459300,-480.0,0.00050136,5]
[381120454,1756055459310,-480.0,0.00050136,120]
[381120456,1756055459319,-480.0,0.00050136,120]
[381120458,1756055459328,-480.0,0.00050136,120]
[381120460,1756055459337,-480.0,0.00050136,120]
[381120462,1756055459346,-845.75,0.00050136,120]
[381120464,1756055459356,-480.0,0.00050136,120]
[381120466,1756055459365,-480.0,0.00050136,120]
[381120468,1756055459374,-480.0,0.00050136,20]
[381120470,1756055459383,-480.0,0.00050136,120]
[381120472,1756055459392,-480.0,0.00050136,120]
[381120474,1756055459401,-298.21,0.00050136,120]
[381120476,1756055459411,-480.0,0.00050136,120]
[381120478,1756055459420,-619.37,0.00050136,120]
[381120480,1756055459429,-480.0,0.00050136,120]
[381120482,1756055459438,-480.0,0.00050136,120]
[381120484,1756055459447,-246.74394084,0.00050136,38]
[381120486,1756055459456,-548.04,0.00050136,120]
[381120488,1756055459465,-480.0,0.00050136,120]
[381120490,1756055459475,-480.0,0.00050136,120]
[381120492,1756055459484,-974.25,0.00050136,120]
[381120494,1756055459493,-1546.9,0.00050136,120]
[381120496,1756055459502,-480.0,0.00050136,120]
[381120498,1756055459512,-480.0,0.00050136,120]
[381120500,1756055459521,-480.0,0.00050136,120]
[381120502,1756055459531,-480.0,0.00050136,120]
[381120504,1756055459540,-805.42,0.00050136,120]
[381120506,1756055459550,-480.0,0.00050136,120]
[381120509,1756055459559,-480.0,0.00050136,120]
[381120511,1756055459569,-480.0,0.00050136,120]
[381120513,1756055459579,-1111.42,0.00050136,120]
[381120515,1756055459588,-2663.88,0.00050136,120]
[381120517,1756055459597,-530.1,0.00050136,120]
[381120518,1756055459606,-480.0,0.00050136,120]
[381120520,1756055459615,-480.0,0.00050136,120]
[381120522,1756055459624,-480.0,0.00050136,120]
[381120524,1756055459634,-480.0,0.00050136,120]
[381120526,1756055459643,-480.0,0.00050136,120]
[381120528,1756055459653,-480.0,0.00050136,120]
[381120530,1756055459662,-579.98,0.00050136,120]
[381120532,1756055459672,-972.33,0.00050136,120]
[381120534,1756055459681,-480.0,0.00050136,120]
[381120536,1756055459690,-480.0,0.00050136,120]
[381120538,1756055459699,-480.0,0.00050136,120]
[381120540,1756055459709,-480.0,0.00050136,120]
[381120542,1756055459718,-480.0,0.00050136,120]
[381120544,1756055459727,-480.0,0.00050136,120]
[381120546,1756055459737,-480.0,0.00050136,120]
[381120548,1756055459746,-480.0,0.00050136,120]
[381120550,1756055459755,-3287.67,0.00050136,120]
[381120552,1756055459765,-761.34,0.00050136,120]
[381120554,1756055459774,-480.0,0.00050136,120]
[381120556,1756055459783,-534.58,0.00050136,120]
[381120558,1756055459792,-4363.52,0.00050136,30]
[381120560,1756055459802,-480.0,0.00050136,120]
[381120562,1756055459811,-480.0,0.00050136,2]
[381120564,1756055459820,-480.0,0.00050136,120]
[381120566,1756055459829,-491.06,0.00050136,120]
[381120568,1756055459839,-924.46,0.00050136,120]
[381120570,1756055459848,-1014.51,0.00050136,120]
[381120572,1756055459857,-480.0,0.00050136,2]
[381120574,1756055459866,-3311.52,0.00050136,120]
[381120576,1756055459875,-480.0,0.00050136,120]
[381120578,1756055459885,-480.0,0.00050136,120]
[381120580,1756055459894,-621.33,0.00050136,120]
[381120582,1756055459903,-5270.82,0.00050136,120]
[381120584,1756055459912,-1603.59,0.00050136,120]
[381120586,1756055459921,-1119.31,0.00050136,120]
[381120588,1756055459931,-480.0,0.00050136,120]
[381120590,1756055459940,-480.0,0.00050136,120]
[381120592,1756055459949,-480.0,0.00050136,120]
[381120594,1756055459958,-480.0,0.00050136,120]
[381120596,1756055459967,-569.63,0.00050136,120]
[381120598,1756055459979,-480.0,0.00050136,120]
[381120600,1756055459988,-480.0,0.00050136,120]
[381120602,1756055459998,-480.0,0.00050136,120]
[381120604,1756055460008,-480.0,0.00050136,120]
[381120606,1756055460017,-480.0,0.00050136,120]
[381120608,1756055460027,-431.44121735,0.00050136,120]
[381120610,1756055460037,-480.0,0.00050136,120]
[381120612,1756055460047,-2627.16,0.00050136,120]
[381120614,1756055460058,-935.32,0.00050136,120]
[381120616,1756055460067,-480.0,0.00050136,120]
[381120618,1756055460077,-480.0,0.00050136,120]
[381120620,1756055460086,-866.84,0.00050136,120]
[381120622,1756055460095,-976.22,0.00050136,120]
[381120624,1756055460104,-480.0,0.00050136,120]
[381120626,1756055460113,-2944.02,0.00050136,120]
[381120628,1756055460122,-480.0,0.00050136,120]
[381120630,1756055460131,-921.35,0.00050136,120]
[381120632,1756055460141,-480.0,0.00050136,120]
[381120634,1756055460151,-1268.38,0.00050136,120]
[381120636,1756055460160,-969.12,0.00050136,120]
[381120638,1756055460169,-665.21,0.00050136,120]
[381120639,1756055460179,-480.0,0.00050136,120]
[381120641,1756055460189,-480.0,0.00050136,120]
[381120643,1756055460198,-625.26,0.00050136,120]
[381120645,1756055460207,-480.0,0.00050136,120]
[381120648,1756055460217,-566.6,0.00050136,120]
[381120650,1756055460226,-480.0,0.00050136,120]
[381120652,1756055460236,-480.0,0.00050136,120]
[381120654,1756055460246,-2977.66,0.00050136,120]
[381120656,1756055460256,-651.75,0.00050136,120]
[381120658,1756055460265,-1118.94,0.00050136,120]
[381120660,1756055460275,-930.6,0.00050136,120]
[381120662,1756055460285,-751.95,0.00050136,120]
[381120664,1756055460294,-1441.85,0.00050136,120]
[381120666,1756055460303,-480.0,0.00050136,120]
[381120668,1756055460312,-2246.16,0.00050136,120]
[381120670,1756055460321,-480.0,0.00050136,120]
[381120672,1756055460330,-480.0,0.00050136,120]
[381120674,1756055460339,-378.20102952,0.00050136,120]
[381120676,1756055460348,-480.0,0.00050136,120]
[381120678,1756055460357,-15462.69,0.00050136,120]
[381120680,1756055460367,-480.0,0.00050136,120]
[381120682,1756055460376,-480.0,0.00050136,120]
[381120684,1756055460386,-497.07,0.00050136,120]
[381120686,1756055460394,-480.0,0.00050136,120]
[381120688,1756055460404,-1175.33,0.00050136,120]
[381120690,1756055460413,-480.0,0.00050136,120]
[381120692,1756055460422,-480.0,0.00050136,120]
[381120694,1756055460431,-1135.82,0.00050136,120]
[381120696,1756055460441,-480.0,0.00050136,120]
[381120698,1756055460450,-519.05,0.00050136,120]
[381120700,1756055460459,-1310.76,0.00050136,120]
[381120716,1756055460598,-1104.46,0.00050136,120]
[381120718,1756055460608,-864.79,0.00050136,120]
[381120720,1756055460617,-738.59,0.00050136,120]
[381120722,1756055460626,-480.0,0.00050136,120]
[381120724,1756055460635,-630.98,0.00050136,120]
[381120726,1756055460644,-1103.81,0.00050136,120]
[381120728,1756055460652,-804.25,0.00050136,120]
[381120730,1756055460662,-701.71,0.00050136,120]
[381120732,1756055460671,-1883.78,0.00050136,120]
[381120734,1756055460681,-587.56,0.00050136,120]
[381120736,1756055460690,-1052.03,0.00050136,120]
[381120738,1756055460699,-480.0,0.00050136,120]
[381120740,1756055460708,-1011.82,0.00050136,120]
[381120742,1756055460718,-480.0,0.00050136,120]
[381120744,1756055460729,-3938.43,0.00050136,120]
[381120746,1756055460739,-480.0,0.00050136,120]
[381120748,1756055460749,-1352.63,0.00050136,120]
[381120750,1756055460758,-480.0,0.00050136,120]
[381120751,1756055460766,-2029.09,0.00050136,120]
[381120753,1756055460776,-530.95,0.00050136,120]
[381120755,1756055460785,-1852.4,0.00050136,120]
[381120757,1756055460795,-480.0,0.00050136,120]
[381120759,1756055460804,-762.74,0.00050136,120]
[381120761,1756055460814,-1000.07,0.00050136,120]
[381120763,1756055460823,-952.48,0.00050136,120]
[381120765,1756055460832,-480.0,0.00050136,120]
[381120767,1756055460841,-572.6,0.00050136,120]
[381120769,1756055460851,-480.0,0.00050136,120]
[381120771,1756055460861,-480.0,0.00050136,120]
[381120773,1756055460870,-480.0,0.00050136,120]
[381120775,1756055460880,-519.0,0.00050136,120]
[381120777,1756055460889,-1238.73,0.00050136,120]
[381120779,1756055460898,-2313.47,0.00050136,120]
[381120781,1756055460907,-446.12949102,0.00050136,120]
[381120783,1756055460917,-835.28,0.00050136,120]
[381120785,1756055460926,-480.0,0.00050136,120]
[381120787,1756055460935,-480.0,0.00050136,120]
[381120789,1756055460945,-480.0,0.00050136,120]
[381120791,1756055460954,-480.0,0.00050136,120]
[381120793,1756055460963,-480.0,0.00050136,120]
[381120795,1756055460973,-480.0,0.00050136,2]
[381120797,1756055460986,-1047.71,0.00050136,120]
[381120799,1756055460996,-1134.4,0.00050136,120]
[381120801,1756055461005,-756.43,0.00050136,120]
[381120803,1756055461015,-1313.53,0.00050136,120]
[381120805,1756055461025,-1285.47,0.00050136,120]
[381120807,1756055461034,-531.72,0.00050136,120]
[381120809,1756055461043,-480.0,0.00050136,120]
[381120811,1756055461054,-939.49,0.00050136,120]
[381120813,1756055461064,-480.0,0.00050136,120]
[381120815,1756055461073,-496.03,0.00050136,120]
[381120817,1756055461082,-1167.94,0.00050136,120]
[381120819,1756055461091,-480.0,0.00050136,120]
[381120821,1756055461101,-480.0,0.00050136,120]
[381120823,1756055461110,-480.0,0.00050136,120]
[381120825,1756055461120,-25060.02,0.00050136,120]
[381120827,1756055461130,-607.81,0.00050136,120]
[381120829,1756055461139,-1756.32,0.00050136,120]
[381120831,1756055461148,-480.0,0.00050136,120]
[381120833,1756055461158,-1176.73,0.00050136,120]
[381120835,1756055461167,-480.0,0.00050136,120]
[381120837,1756055461176,-480.0,0.00050136,120]
[381120839,1756055461186,-480.0,0.00050136,120]
[381120841,1756055461195,-660.08,0.00050136,120]
[381120843,1756055461204,-1203.06,0.00050136,120]
[381120845,1756055461214,-680.53,0.00050136,120]
[381120847,1756055461223,-585.70028628,0.00050136,120]
[381120849,1756055461233,-1384.65,0.00050136,120]
[381120851,1756055461242,-480.0,0.00050136,120]
[381120853,1756055461251,-480.0,0.00050136,120]
[381120854,1756055461260,-990.73,0.00050136,120]
[381120855,1756055461269,-165.88994065,0.00050136,120]
[381120856,1756055461279,-1731.98,0.00050136,120]
[381120857,1756055461288,-721.8,0.00050136,14]
[381120858,1756055461297,-622.82,0.00050136,120]
[381120859,1756055461306,-1000.0,0.00050136,120]
[381120860,1756055461315,-480.0,0.00050136,120]
[381120861,1756055461325,-661.82,0.00050136,120]
[381120862,1756055461335,-524.19,0.00050136,120]
[381120863,1756055461345,-548.96,0.00050136,120]
[381120864,1756055461355,-911.74,0.00050136,120]
[381120865,1756055461365,-4819.0,0.00050136,120]
[381120866,1756055461374,-480.0,0.00050136,120]
[381120867,1756055461384,-480.0,0.00050136,120]
[381120868,1756055461393,-3784.58,0.00050136,120]
[381120869,1756055461403,-480.0,0.00050136,120]
[381120870,1756055461412,-985.35,0.00050136,120]
[381120871,1756055461421,-480.0,0.00050136,120]
[381120872,1756055461431,-480.0,0.00050136,120]
[381120873,1756055461443,-658.58,0.00050136,120]
[381120874,1756055461452,-480.0,0.00050136,120]
[381120875,1756055461462,-480.0,0.00050136,120]
[381120876,1756055461472,-480.0,0.00050136,120]
[381120877,1756055461483,-480.0,0.00050136,120]
[381120878,1756055461493,-622.23,0.00050136,120]
[381120879,1756055461502,-480.0,0.00050136,120]
[381120880,1756055461512,-599.58,0.00050136,120]
[381120881,1756055461521,-1386.56,0.00050136,120]
[381120882,1756055461530,-639.22,0.00050136,120]
[381120884,1756055461539,-480.0,0.00050136,120]
[381120886,1756055461549,-568.62,0.00050136,120]
[381120888,1756055461559,-480.0,0.00050136,120]
[381120890,1756055461568,-2260.98,0.00050136,120]
[381120893,1756055461585,-1207.48,0.00050136,120]
[381120896,1756055461606,-662.52,0.00050136,120]
[381120899,1756055461622,-1363.1,0.00050136,120]
[381120902,1756055461642,-480.0,0.00050136,120]
[381120905,1756055461661,-2288.25,0.00050136,120]
[381120908,1756055461680,-480.0,0.00050136,120]
[381120911,1756055461699,-467.33845849,0.00050136,120]
[381120914,1756055461718,-480.0,0.00050136,120]
[381120916,1756055461733,-2339.82,0.00050136,120]
[381120919,1756055461751,-480.0,0.00050136,120]
[381120923,1756055461771,-480.09,0.00050136,120]
[381120925,1756055461789,-2261.85,0.00050136,120]
[381120928,1756055461801,-941.43,0.00050136,120]
[381120931,1756055461821,-899.2,0.00050136,120]
[381120933,1756055461834,-988.38,0.00050136,120]
[381120936,1756055461850,-629.35,0.00050136,120]
[381120938,1756055461863,-480.0,0.00050136,120]
[381120941,1756055461878,-480.0,0.00050136,120]
[381120944,1756055461894,-480.0,0.00050136,120]
[381120946,1756055461910,-480.0,0.00050136,120]
[381120949,1756055461925,-480.0,0.00050136,120]
[381120951,1756055461940,-480.0,0.00050136,120]
[381120954,1756055461956,-5694.54,0.00050136,120]
[381120956,1756055461973,-715.78,0.00050136,120]
[381120958,1756055461997,-1087.11,0.00050136,120]
[381120961,1756055462021,-480.0,0.00050136,120]
[381120963,1756055462048,-480.0,0.00050136,120]
[381120965,1756055462075,-480.0,0.00050136,120]
[381120968,1756055462099,-480.0,0.00050136,120]
[381120970,1756055462113,-836.64,0.00050136,120]
[381120972,1756055462128,-480.0,0.00050136,120]
[381120975,1756055462144,-1163.35,0.00050136,120]
[381120977,1756055462159,-480.0,0.00050136,120]
[381120980,1756055462174,-427.70049843,0.00050136,120]
[381120983,1756055462190,-480.0,0.00050136,120]
[381120985,1756055462205,-793.25,0.00050136,120]
[381120988,1756055462220,-480.0,0.00050136,120]
[381120990,1756055462236,-530.72,0.00050136,120]
[381120992,1756055462251,-480.0,0.00050136,120]
[381120993,1756055462265,-785.12,0.00050136,120]
[381120994,1756055462280,-480.0,0.00050136,120]
[381120995,1756055462294,-480.0,0.00050136,120]
[381120996,1756055462308,-480.0,0.00050136,120]
[381120997,1756055462321,-1211.77,0.00050136,120]
[381120998,1756055462335,-1481.43,0.00050136,120]
[381120999,1756055462348,-480.0,0.00050136,7]
[381121000,1756055462362,-439.78640586,0.00050136,120]
[381121001,1756055462378,-480.0,0.00050136,120]
[381121002,1756055462392,-1024.3,0.00050136,120]
[381121003,1756055462406,-1502.31,0.00050136,120]
[381121004,1756055462425,-1812.9,0.00050136,120]
[381121005,1756055462438,-449.99736481,0.00050136,120]
[381121006,1756055462453,-1771.85,0.00050136,120]
[381121007,1756055462468,-480.0,0.00050136,120]
[381121008,1756055462482,-604.45,0.00050136,120]
[381121009,1756055462496,-846.31,0.00050136,120]
[381121010,1756055462509,-497.97,0.00050136,120]
[381121011,1756055462523,-480.0,0.00050136,120]
[381121012,1756055462537,-819.49,0.00050136,120]
[381121013,1756055462551,-3032.16,0.00050136,120]
[381121014,1756055462565,-480.0,0.00050136,120]
[381121015,1756055462580,-480.0,0.00050136,120]
[381121016,1756055462593,-696.12,0.00050136,120]
[381121017,1756055462608,-411.53802869,0.00050136,120]
[381121018,1756055462622,-480.0,0.00050136,120]
[381121019,1756055462636,-480.0,0.00050136,120]
[381121020,1756055462651,-480.0,0.00050136,120]
[381121021,1756055462665,-2168.02,0.00050136,120]
[381121022,1756055462679,-480.0,0.00050136,120]
[381121023,1756055462694,-775.51,0.00050136,120]
[381121024,1756055462707,-3394.87,0.00050136,120]
[381121025,1756055462721,-850.25,0.00050136,120]
[381121026,1756055462735,-445.73036292,0.00050136,120]
[381121027,1756055462749,-480.0,0.00050136,120]
[381121028,1756055462763,-480.0,0.00050136,120]
[381121029,1756055462776,-480.0,0.00050136,120]
[381121030,1756055462791,-690.14,0.00050136,120]
[381121031,1756055462805,-480.0,0.00050136,120]
[381121032,1756055462819,-1266.09,0.00050136,120]